fUSD/lending_fUSD_20250214
["ID","MTS","AMOUNT","RATE_DAILY","PERIOD"]
[353083758,1739545847463,-500.0,0.0001378,2]
[353083760,1739545847473,-1497.76,0.0001378,2]
[353083762,1739545847484,-525.76,0.0001378,2]
[353083765,1739545847494,-500.0,0.0001378,2]
[353083767,1739545847503,-500.0,0.0001378,2]
[353083768,1739545847513,-500.0,0.0001378,2]
[353083770,1739545847522,-1081.96,0.0001378,2]
[353083772,1739545847533,-668.69,0.0001378,2]
[353083774,1739545847542,-500.0,0.0001378,2]
[353083776,1739545847551,-633.25,0.0001378,2]
[353083778,1739545847561,-500.0,0.0001378,2]
[353083780,1739545847572,-500.0,0.0001378,2]
[353083782,1739545847581,-500.0,0.0001378,2]
[353083784,1739545847590,-1203.75,0.0001378,2]
[353083786,1739545847600,-500.0,0.0001378,2]
[353083789,1739545847610,-1435.42,0.0001378,2]
[353083790,1739545847620,-635.7,0.0001378,2]
[353083792,1739545847630,-837.05,0.0001378,2]
[353083794,1739545847639,-2565.88,0.0001378,2]
[353083796,1739545847649,-2290.15,0.0001378,2]
[353083797,1739545847658,-834.43,0.0001378,2]
[353083798,1739545847668,-709.39,0.0001378,2]
[353083800,1739545847677,-500.0,0.0001378,2]
[353083802,1739545847687,-1173.24,0.0001378,2]
[353083803,1739545847696,-925.54,0.0001378,2]
[353083805,1739545847704,-1016.37,0.0001378,2]
[353083806,1739545847713,-1892.07,0.0001378,2]
[353083808,1739545847726,-500.0,0.0001378,2]
[353083809,1739545847741,-865.59,0.0001378,2]
[353083811,1739545847751,-500.0,0.0001378,2]
[353083813,1739545847760,-500.0,0.0001378,2]
[353083814,1739545847769,-943.02,0.0001378,2]
[353083816,1739545847778,-698.02,0.0001378,2]
[353083817,1739545847788,-619.11,0.0001378,2]
[353083819,1739545847798,-894.84,0.0001378,2]
[353083821,1739545847807,-500.0,0.0001378,2]
[353083822,1739545847817,-668.77,0.0001378,2]
[353083824,1739545847826,-500.0,0.0001378,2]
[353083825,1739545847835,-1870.73,0.0001378,2]
[353083827,1739545847845,-1130.63,0.0001378,2]
[353083829,1739545847855,-500.0,0.0001378,2]
[353083830,1739545847868,-1185.22,0.0001378,2]
[353083832,1739545847878,-1337.44,0.0001378,2]
[353083833,1739545847888,-500.0,0.0001378,2]
[353083835,1739545847897,-614.28,0.0001378,2]
[353083837,1739545847907,-1912.16,0.0001378,2]
[353083838,1739545847916,-1327.0,0.0001378,2]
[353083840,1739545847927,-1240.42,0.0001378,2]
[353083841,1739545847936,-500.0,0.0001378,2]
[353083843,1739545847946,-500.0,0.0001378,2]
[353083845,1739545848168,-1130.06,0.0001378,2]
[353083846,1739545848180,-3427.4,0.0001378,2]
[353083848,1739545848191,-946.77,0.0001378,2]
[353083850,1739545848201,-1557.95,0.0001378,2]
[353083852,1739545848211,-1045.99,0.0001378,2]
[353083853,1739545848221,-1294.85,0.0001378,2]
[353083855,1739545848232,-500.0,0.0001378,2]
[353083857,1739545848243,-500.0,0.0001378,2]
[353083858,1739545848254,-500.0,0.0001378,2]
[353083860,1739545848265,-1175.67,0.0001378,2]
[353083862,1739545848275,-500.0,0.0001378,2]
[353083863,1739545848286,-2058.4,0.0001378,2]
[353083865,1739545848297,-1589.74,0.0001378,2]
[353083867,1739545848307,-500.0,0.0001378,2]
[353083869,1739545848318,-2047.36,0.0001378,2]
[353083870,1739545848328,-500.0,0.0001378,2]
[353083872,1739545848338,-1842.3,0.0001378,2]
[353083873,1739545848348,-1116.55,0.0001378,2]
[353083875,1739545848359,-1350.1,0.0001378,2]
[353083877,1739545848369,-681.49,0.0001378,2]
[353083879,1739545848380,-500.0,0.0001378,2]
[353083880,1739545848390,-500.0,0.0001378,2]
[353083882,1739545848399,-500.0,0.0001378,2]
[353083884,1739545848410,-1190.6,0.0001378,2]
[353083885,1739545848420,-1033.81,0.0001378,2]
[353083887,1739545848431,-1219.91,0.0001378,2]
[353083889,1739545848441,-1934.31,0.0001378,2]
[353083890,1739545848453,-996.28,0.0001378,2]
[353083891,1739545848463,-1707.79,0.0001378,2]
[353083892,1739545848475,-1903.36,0.0001378,2]
[353083894,1739545848487,-500.0,0.0001378,2]
[353083895,1739545848496,-786.87,0.0001378,2]
[353083896,1739545848506,-2850.92,0.0001378,2]
[353083898,1739545848516,-2673.92,0.0001378,2]
[353083899,1739545848528,-1093.32,0.0001378,2]
[353083901,1739545848542,-775.77,0.0001378,2]
[353083902,1739545848553,-2256.11,0.0001378,2]
[353083904,1739545848564,-1784.99,0.0001378,2]
[353083905,1739545848575,-500.0,0.0001378,2]
[353083907,1739545848586,-536.97,0.0001378,2]
[353083908,1739545848597,-2040.21,0.0001378,2]
[353083910,1739545848607,-5749.68,0.0001378,2]
[353083912,1739545848618,-768.54,0.0001378,2]
[353083913,1739545848627,-676.76,0.0001378,2]
[353083915,1739545848637,-1779.74,0.0001378,2]
[353083917,1739545848648,-500.0,0.0001378,2]
[353083918,1739545848658,-1695.09,0.0001378,2]
[353083920,1739545848668,-2211.94,0.0001378,2]
[353083922,1739545848678,-500.0,0.0001378,2]
[353083923,1739545848688,-1435.98,0.0001378,2]
[353083925,1739545848699,-1204.1,0.0001378,2]
[353083927,1739545848709,-2262.58,0.0001378,2]
[353083928,1739545848719,-500.0,0.0001378,2]
[353083930,1739545848728,-2522.48,0.0001378,2]
[353083932,1739545848739,-1172.11,0.0001378,2]
[353083933,1739545848749,-2189.82,0.0001378,2]
[353083935,1739545848759,-1663.8,0.0001378,2]
[353083937,1739545848768,-1742.82,0.0001378,2]
[353083938,1739545848779,-534.63,0.0001378,2]
[353083940,1739545848789,-1820.15,0.0001378,2]
[353083942,1739545848799,-1455.85,0.0001378,2]
[353083944,1739545848809,-1887.67,0.0001378,2]
[353083946,1739545848819,-2784.26,0.0001378,2]
[353083948,1739545848829,-500.0,0.0001378,2]
[353083950,1739545848839,-1331.63,0.0001378,2]
[353083952,1739545848849,-5429.9,0.0001378,2]
[353083954,1739545848860,-511.96,0.0001378,2]
[353083956,1739545848871,-500.0,0.0001378,2]
[353083957,1739545848880,-515.06,0.0001378,2]
[353083958,1739545848890,-500.0,0.0001378,2]
[353083959,1739545848901,-500.0,0.0001378,2]
[353083960,1739545848911,-1302.96,0.0001378,2]
[353083961,1739545848922,-2298.91,0.0001378,2]
[353083962,1739545848932,-1223.72,0.0001378,2]
[353083963,1739545848942,-500.0,0.0001378,2]
[353083964,1739545848954,-1905.75,0.0001378,2]
[353083965,1739545848964,-500.0,0.0001378,2]
[353083966,1739545848974,-500.0,0.0001378,2]
[353083967,1739545848985,-500.0,0.0001378,2]
[353083968,1739545848995,-500.0,0.0001378,2]
[353083969,1739545849005,-1453.68,0.0001378,2]
[353083970,1739545849015,-500.0,0.0001378,2]
[353083971,1739545849025,-2096.41,0.0001378,2]
[353083973,1739545849035,-500.0,0.0001378,2]
[353083974,1739545849043,-1973.67,0.0001378,2]
[353083976,1739545849052,-500.0,0.0001378,2]
[353083977,1739545849061,-500.0,0.0001378,2]
[353083979,1739545849071,-2059.89,0.0001378,2]
[353083981,1739545849080,-2226.57,0.0001378,2]
[353083983,1739545849090,-500.0,0.0001378,2]
[353083985,1739545849100,-500.0,0.0001378,2]
[353083987,1739545849109,-1190.45,0.0001378,2]
[353083990,1739545849119,-500.0,0.0001378,2]
[353083992,1739545849129,-500.0,0.0001378,2]
[353083994,1739545849139,-1515.7,0.0001378,2]
[353083996,1739545849148,-2907.19,0.0001378,2]
[353083998,1739545849158,-500.0,0.0001378,2]
[353083999,1739545849168,-568.24,0.0001378,2]
[353084001,1739545849177,-3399.48,0.0001378,2]
[353084003,1739545849187,-500.0,0.0001378,2]
[353084005,1739545849198,-500.0,0.0001378,2]
[353084007,1739545849209,-1114.96,0.0001378,2]
[353084009,1739545849219,-523.07,0.0001378,2]
[353084011,1739545849232,-500.0,0.0001378,2]
[353084013,1739545849242,-695.31,0.0001378,2]
[353084015,1739545849253,-500.0,0.0001378,2]
[353084017,1739545849265,-3031.28,0.0001378,2]
[353084020,1739545849276,-500.0,0.0001378,2]
[353084022,1739545849287,-1318.18,0.0001378,2]
[353084023,1739545849297,-500.0,0.0001378,2]
[353084026,1739545849308,-1937.16,0.0001378,2]
[353084027,1739545849318,-2979.21,0.0001378,2]
[353084030,1739545849329,-755.12,0.0001378,2]
[353084032,1739545849340,-1872.05,0.0001378,2]
[353084034,1739545849350,-999.78,0.0001378,2]
[353084036,1739545849359,-826.67,0.0001378,2]
[353084038,1739545849369,-500.0,0.0001378,2]
[353084040,1739545849380,-966.81,0.0001378,2]
[353084042,1739545849390,-500.0,0.0001378,2]
[353084044,1739545849401,-2108.51,0.0001378,2]
[353084045,1739545849411,-691.63,0.0001378,2]
[353084048,1739545849422,-500.0,0.0001378,2]
[353084050,1739545849433,-500.0,0.0001378,2]
[353084052,1739545849443,-328.47299713,0.0001378,2]
[353084054,1739545849454,-500.0,0.0001378,2]
[353084056,1739545849465,-2000.0,0.000138,5]
[353084058,1739545849476,-4870.28456458,0.00013817,2]
[353084059,1739545849491,-175.94871696,0.00013844,2]
[353084061,1739545849502,-202.73622945,0.00013853,2]
[353084064,1739545849512,-2739.63,0.00013861,2]
[353084065,1739545849523,-1063.8,0.00013861,2]
[353084067,1739545849533,-2248.0,0.00013861,2]
[353084069,1739545849543,-2636.48,0.00013861,2]
[353084071,1739545849552,-1633.89,0.00013861,2]
[353084073,1739545849562,-1061.39,0.00013861,2]
[353084075,1739545849574,-803.67,0.00013861,2]
[353084077,1739545849584,-1886.85,0.00013861,2]
[353084079,1739545849594,-524.54,0.00013861,2]
[353084081,1739545849604,-1860.92,0.00013861,2]
[353084082,1739545849614,-2239.68,0.00013861,2]
[353084083,1739545849624,-857.63,0.00013861,2]
[353084084,1739545849634,-1144.04,0.00013861,2]
[353084085,1739545849644,-2376.38,0.00013861,2]
[353084086,1739545849653,-2835.46,0.00013861,2]
[353084087,1739545849663,-5703.32,0.00013861,2]
[353084088,1739545849673,-1675.17,0.00013861,2]
[353084089,1739545849683,-1816.05,0.00013861,2]
[353084090,1739545849693,-2748.8,0.00013861,2]
[353084091,1739545849702,-2556.39,0.00013861,2]
[353084092,1739545849712,-724.27,0.00013861,2]
[353084093,1739545849722,-1771.07,0.00013861,2]
[353084094,1739545849733,-2152.37,0.00013861,2]
[353084095,1739545849741,-2248.75,0.00013861,2]
[353084096,1739545849751,-500.0,0.00013862,2]
[353084097,1739545849761,-500.0,0.00013863,2]
[353084098,1739545849770,-500.0,0.00013863,2]
[353084099,1739545849780,-500.0,0.00013863,2]
[353084100,1739545849789,-500.0,0.00013863,2]
[353084101,1739545849798,-500.0,0.00013863,2]
[353084102,1739545849808,-500.0,0.00013863,2]
[353084103,1739545849817,-500.0,0.00013863,2]
[353084104,1739545849827,-500.0,0.00013863,2]
[353084105,1739545849836,-500.0,0.00013863,2]
[353084106,1739545849846,-500.0,0.00013863,2]
[353084107,1739545849856,-881.83,0.00013863,2]
[353084108,1739545849865,-500.0,0.00013863,2]
[353084109,1739545849874,-1399.94,0.00013863,2]
[353084110,1739545849884,-624.26,0.00013863,2]
[353084111,1739545849894,-500.0,0.00013863,2]
[353084112,1739545849903,-500.0,0.00013863,2]
[353084113,1739545849913,-1576.73,0.00013863,2]
[353084114,1739545849922,-500.0,0.00013863,2]
[353084115,1739545849933,-500.0,0.00013863,2]
[353084116,1739545849942,-508.66,0.00013863,2]
[353084117,1739545849952,-500.0,0.00013863,2]
[353084118,1739545849962,-500.0,0.00013863,2]
[353084119,1739545849972,-500.0,0.00013863,2]
[353084120,1739545849982,-500.0,0.00013863,2]
[353084121,1739545849992,-705.36,0.00013863,2]
[353084122,1739545850001,-500.0,0.00013863,2]
[353084123,1739545850011,-712.14,0.00013863,2]
[353084124,1739545850020,-922.48,0.00013863,2]
[353084125,1739545850029,-2446.53,0.00013863,2]
[353084126,1739545850038,-500.0,0.00013863,2]
[353084127,1739545850047,-952.2,0.00013863,2]
[353084128,1739545850057,-500.0,0.00013863,2]
[353084129,1739545850066,-500.0,0.00013863,2]
[353084130,1739545850075,-570.76,0.00013863,2]
[353084131,1739545850085,-624.83,0.00013863,2]
[353084132,1739545850094,-500.0,0.00013863,2]
[353084133,1739545850103,-913.23,0.00013863,2]
[353084134,1739545850113,-610.01,0.00013863,2]
[353084135,1739545850122,-500.0,0.00013863,2]
[353084137,1739545850131,-500.0,0.00013863,2]
[353084139,1739545850141,-500.0,0.00013863,2]
[353084141,1739545850151,-500.0,0.00013863,2]
[353084143,1739545850160,-634.51,0.00013863,2]
[353084145,1739545850170,-648.6,0.00013863,2]
[353084147,1739545850179,-500.0,0.00013863,2]
[353084149,1739545850189,-500.0,0.00013863,2]
[353084151,1739545850199,-500.0,0.00013863,2]
[353084153,1739545850208,-1506.87,0.00013863,2]
[353084155,1739545850218,-500.0,0.00013863,2]
[353084157,1739545850227,-500.0,0.00013863,2]
[353084159,1739545850238,-1081.57,0.00013863,2]
[353084161,1739545850248,-670.92,0.00013863,2]
[353084163,1739545850258,-500.0,0.00013863,2]
[353084165,1739545850267,-708.63,0.00013863,2]
[353084167,1739545850277,-500.0,0.00013863,2]
[353084169,1739545850286,-500.0,0.00013863,2]
[353084171,1739545850295,-509.91,0.00013863,2]
[353084173,1739545850305,-500.0,0.00013863,2]
[353084175,1739545850315,-1562.1,0.00013863,2]
[353084176,1739545850324,-500.0,0.00013863,2]
[353084178,1739545850334,-500.0,0.00013863,2]
[353084179,1739545850343,-1104.74,0.00013863,2]
[353084180,1739545850352,-500.0,0.00013863,2]
[353084181,1739545850361,-500.0,0.00013863,2]
[353084182,1739545850371,-507.78,0.00013863,2]
[353084183,1739545850380,-744.35,0.00013863,2]
[353084184,1739545850389,-500.0,0.00013863,2]
[353084185,1739545850398,-500.0,0.00013863,2]
[353084186,1739545850407,-500.0,0.00013863,2]
[353084187,1739545850417,-515.81,0.00013863,2]
[353084188,1739545850426,-501.08,0.00013863,2]
[353084189,1739545850435,-974.01,0.00013863,2]
[353084190,1739545850444,-500.0,0.00013863,2]
[353084191,1739545850454,-500.0,0.00013863,2]
[353084192,1739545850463,-1110.24,0.00013863,2]
[353084193,1739545850472,-500.0,0.00013863,2]
[353084194,1739545850487,-918.01,0.00013863,2]
[353084195,1739545850496,-500.0,0.00013863,2]
[353084196,1739545850506,-500.0,0.00013863,2]
[353084197,1739545850515,-500.0,0.00013863,2]
[353084198,1739545850525,-500.0,0.00013863,2]
[353084199,1739545850534,-568.81,0.00013863,2]
[353084200,1739545850544,-500.0,0.00013863,2]
[353084201,1739545850554,-1168.03,0.00013863,2]
[353084202,1739545850565,-500.0,0.00013863,2]
[353084203,1739545850574,-840.07,0.00013863,2]
[353084204,1739545850584,-500.0,0.00013863,2]
[353084205,1739545850594,-500.0,0.00013863,2]
[353084206,1739545850603,-775.03,0.00013863,2]
[353084207,1739545850613,-500.0,0.00013863,2]
[353084208,1739545850622,-504.07,0.00013863,2]
[353084209,1739545850632,-1293.04,0.00013863,2]
[353084211,1739545850642,-500.0,0.00013863,2]
[353084213,1739545850651,-500.0,0.00013863,2]
[353084215,1739545850660,-500.0,0.00013863,2]
[353084216,1739545850670,-500.0,0.00013863,2]
[353084217,1739545850679,-767.68,0.00013863,2]
[353084218,1739545850690,-798.49,0.00013863,2]
[353084219,1739545850700,-736.58,0.00013863,2]
[353084220,1739545850710,-500.0,0.00013863,2]
[353084221,1739545850720,-500.0,0.00013863,2]
[353084222,1739545850729,-500.0,0.00013863,2]
[353084223,1739545850740,-500.0,0.00013863,2]
[353084224,1739545850917,-737.54,0.00013863,2]
[353084225,1739545850956,-500.0,0.00013863,2]
[353084226,1739545850966,-500.0,0.00013863,2]
[353084227,1739545850975,-500.0,0.00013863,2]
[353084228,1739545850986,-500.0,0.00013863,2]
[353084229,1739545850996,-867.18,0.00013863,2]
[353084230,1739545851005,-780.092677,0.00013863,2]
[353084231,1739545851015,-500.0,0.00013863,2]
[353084232,1739545851025,-500.0,0.00013863,2]
[353084233,1739545851034,-500.0,0.00013863,2]
[353084234,1739545851043,-865.33,0.00013863,2]
[353084235,1739545851055,-543.11,0.00013863,2]
[353084236,1739545851064,-500.0,0.00013863,2]
[353084237,1739545851074,-591.66,0.00013863,2]
[353084238,1739545851084,-500.0,0.00013863,2]
[353084239,1739545851093,-500.0,0.00013863,2]
[353084240,1739545851103,-1114.914465,0.00013863,2]
[353084241,1739545851113,-783.35,0.00013863,2]
[353084242,1739545851122,-500.0,0.00013863,2]
[353084243,1739545851133,-500.0,0.00013863,2]
[353084244,1739545851142,-500.0,0.00013863,2]
[353084245,1739545851151,-535.29,0.00013863,2]
[353084246,1739545851161,-500.0,0.00013863,2]
[353084247,1739545851171,-500.0,0.00013863,2]
[353084248,1739545851180,-846.18,0.00013863,2]
[353084249,1739545851189,-500.0,0.00013863,2]
[353084250,1739545851199,-1574.94,0.00013863,2]
[353084251,1739545851208,-545.4,0.00013863,2]
[353084252,1739545851218,-500.0,0.00013863,2]
[353084253,1739545851227,-500.0,0.00013863,2]
[353084254,1739545851238,-500.0,0.00013863,2]
[353084255,1739545851247,-500.0,0.00013863,2]
[353084256,1739545851257,-500.0,0.00013863,2]
[353084257,1739545851267,-1163.11,0.00013863,2]
[353084258,1739545851276,-500.0,0.00013863,2]
[353084259,1739545851285,-500.0,0.00013863,2]
[353084260,1739545851295,-758.18,0.00013863,2]
[353084261,1739545851304,-500.0,0.00013863,2]
[353084262,1739545851314,-903.24,0.00013863,2]
[353084263,1739545851324,-1395.2,0.00013863,2]
[353084264,1739545851333,-500.0,0.00013863,2]
[353084265,1739545851343,-500.0,0.00013863,2]
[353084266,1739545851352,-500.0,0.00013863,2]
[353084267,1739545851362,-500.0,0.00013863,2]
[353084268,1739545851372,-500.0,0.00013863,2]
[353084269,1739545851381,-500.0,0.00013863,2]
[353084270,1739545851391,-500.0,0.00013863,2]
[353084271,1739545851399,-674.27,0.00013863,2]
[353084272,1739545851408,-500.0,0.00013863,2]
[353084273,1739545851418,-566.03,0.00013863,2]
[353084274,1739545851428,-640.74,0.00013863,2]
[353084275,1739545851437,-504.57,0.00013863,2]
[353084276,1739545851447,-500.0,0.00013863,2]
[353084277,1739545851456,-500.0,0.00013863,2]
[353084278,1739545851466,-582.08,0.00013863,2]
[353084279,1739545851479,-1542.57,0.00013863,2]
[353084280,1739545851493,-1548.23,0.00013863,2]
[353084281,1739545851502,-500.0,0.00013863,2]
[353084282,1739545851512,-500.0,0.00013863,2]
[353084283,1739545851522,-500.0,0.00013863,2]
[353084284,1739545851532,-500.0,0.00013863,2]
[353084285,1739545851542,-643.48,0.00013863,2]
[353084286,1739545851551,-531.47,0.00013863,2]
[353084287,1739545851562,-500.0,0.00013863,2]
[353084288,1739545851572,-500.0,0.00013863,2]
[353084289,1739545851582,-544.38,0.00013863,2]
[353084290,1739545851592,-881.25,0.00013863,2]
[353084291,1739545851602,-910.2,0.00013863,2]
[353084292,1739545851612,-500.0,0.00013863,2]
[353084293,1739545851621,-500.0,0.00013863,2]
[353084294,1739545851631,-1227.48,0.00013863,2]
[353084295,1739545851641,-500.0,0.00013863,2]
[353084296,1739545851651,-500.0,0.00013863,2]
[353084297,1739545851660,-1017.57,0.00013863,2]
[353084298,1739545851669,-500.0,0.00013863,2]
[353084299,1739545851680,-611.73,0.00013863,2]
[353084300,1739545851690,-500.0,0.00013863,2]
[353084301,1739545851699,-591.36,0.00013863,2]
[353084302,1739545851709,-500.0,0.00013863,2]
[353084303,1739545851719,-500.0,0.00013863,2]
[353084304,1739545851729,-500.0,0.00013863,2]
[353084305,1739545851742,-500.0,0.00013863,2]
[353084306,1739545851752,-500.0,0.00013863,2]
[353084307,1739545851762,-834.4,0.00013863,2]
[353084308,1739545851772,-500.0,0.00013863,2]
[353084309,1739545851782,-1097.81,0.00013863,2]
[353084310,1739545851792,-200.43008806,0.00013863,2]
[353084311,1739545851802,-500.0,0.00013863,2]
[353084312,1739545851811,-500.0,0.00013863,2]
[353084313,1739545851821,-500.0,0.00013863,2]
[353084314,1739545851832,-525.5,0.00013863,2]
[353084315,1739545851841,-606.72,0.00013863,2]
[353084316,1739545851851,-1076.19,0.00013863,2]
[353084317,1739545851861,-500.0,0.00013863,2]
[353084318,1739545851872,-893.46,0.00013863,2]
[353084319,1739545851882,-500.0,0.00013863,2]
[353084320,1739545851891,-923.71,0.00013863,2]
[353084321,1739545851901,-692.78,0.00013863,2]
[353084322,1739545851911,-500.0,0.00013863,2]
[353084323,1739545851921,-500.0,0.00013863,2]
[353084324,1739545851931,-500.0,0.00013863,2]
[353084325,1739545851941,-836.82,0.00013863,2]
[353084326,1739545851951,-948.97,0.00013863,2]
[353084327,1739545851960,-500.0,0.00013863,2]
[353084328,1739545851970,-500.0,0.00013863,2]
[353084329,1739545851980,-1211.66,0.00013863,2]
[353084330,1739545851993,-536.97,0.00013863,2]
[353084331,1739545852002,-500.0,0.00013863,2]
[353084332,1739545852012,-500.0,0.00013863,2]
[353084333,1739545852022,-660.75,0.00013863,2]
[353084334,1739545852031,-500.0,0.00013863,2]
[353084335,1739545852040,-765.26,0.00013863,2]
[353084336,1739545852049,-737.1,0.00013863,2]
[353084337,1739545852059,-500.0,0.00013863,2]
[353084338,1739545852068,-500.0,0.00013863,2]
[353084339,1739545852077,-500.0,0.00013863,2]
[353084340,1739545852087,-1347.02,0.00013863,2]
[353084341,1739545852097,-500.0,0.00013863,2]
[353084342,1739545852107,-723.26,0.00013863,2]
[353084343,1739545852117,-500.0,0.00013863,2]
[353084344,1739545852127,-1029.87,0.00013863,2]
[353084345,1739545852136,-522.88,0.00013863,2]
[353084346,1739545852145,-500.0,0.00013863,2]
[353084347,1739545852155,-1497.76,0.00013863,2]
[353084348,1739545852164,-525.76,0.00013863,2]
[353084349,1739545852174,-500.0,0.00013863,2]
[353084350,1739545852183,-500.0,0.00013863,2]
[353084351,1739545852193,-500.0,0.00013863,2]
[353084352,1739545852202,-1081.96,0.00013863,2]
[353084353,1739545852211,-668.69,0.00013863,2]
[353084354,1739545852221,-500.0,0.00013863,2]
[353084355,1739545852231,-633.25,0.00013863,2]
[353084356,1739545852242,-500.0,0.00013863,2]
[353084357,1739545852252,-500.0,0.00013863,2]
[353084358,1739545852261,-500.0,0.00013863,2]
[353084359,1739545852271,-1203.75,0.00013863,2]
[353084360,1739545852281,-500.0,0.00013863,2]
[353084361,1739545852291,-1435.42,0.00013863,2]
[353084362,1739545852301,-635.7,0.00013863,2]
[353084363,1739545852311,-837.05,0.00013863,2]
[353084364,1739545852320,-2565.88,0.00013863,2]
[353084365,1739545852330,-2290.15,0.00013863,2]
[353084366,1739545852340,-834.43,0.00013863,2]
[353084367,1739545852350,-709.39,0.00013863,2]
[353084368,1739545852359,-500.0,0.00013863,2]
[353084369,1739545852368,-1173.24,0.00013863,2]
[353084370,1739545852378,-925.54,0.00013863,2]
[353084371,1739545852387,-1016.37,0.00013863,2]
[353084372,1739545852397,-1892.07,0.00013863,2]
[353084373,1739545852407,-500.0,0.00013863,2]
[353084374,1739545852417,-865.59,0.00013863,2]
[353084375,1739545852427,-500.0,0.00013863,2]
[353084376,1739545852436,-500.0,0.00013863,2]
[353084377,1739545852445,-943.02,0.00013863,2]
[353084378,1739545852455,-698.02,0.00013863,2]
[353084379,1739545852464,-619.11,0.00013863,2]
[353084380,1739545852473,-894.84,0.00013863,2]
[353084381,1739545852483,-500.0,0.00013863,2]
[353084382,1739545852495,-668.77,0.00013863,2]
[353084383,1739545852504,-500.0,0.00013863,2]
[353084384,1739545852514,-1870.73,0.00013863,2]
[353084385,1739545852524,-1130.63,0.00013863,2]
[353084386,1739545852534,-500.0,0.00013863,2]
[353084387,1739545852543,-1185.22,0.00013863,2]
[353084388,1739545852553,-1337.44,0.00013863,2]
[353084389,1739545852565,-500.0,0.00013863,2]
[353084390,1739545852575,-614.28,0.00013863,2]
[353084391,1739545852584,-1912.16,0.00013863,2]
[353084392,1739545852594,-1327.0,0.00013863,2]
[353084393,1739545852603,-1240.42,0.00013863,2]
[353084394,1739545852613,-188.98,0.00013863,2]
[353084395,1739545852622,-500.0,0.00013863,2]
[353084396,1739545852632,-1130.06,0.00013863,2]
[353084397,1739545852642,-3427.4,0.00013863,2]
[353084398,1739545852651,-946.77,0.00013863,2]
[353084399,1739545852661,-1557.95,0.00013863,2]
[353084400,1739545852671,-1045.99,0.00013863,2]
[353084401,1739545852680,-1294.85,0.00013863,2]
[353084402,1739545852690,-500.0,0.00013863,2]
[353084403,1739545852699,-500.0,0.00013863,2]
[353084404,1739545852709,-500.0,0.00013863,2]
[353084405,1739545852719,-1175.67,0.00013863,2]
[353084406,1739545852729,-500.0,0.00013863,2]
[353084407,1739545852740,-2058.4,0.00013863,2]
[353084408,1739545852750,-1589.74,0.00013863,2]
[353084409,1739545852759,-500.0,0.00013863,2]
[353084410,1739545852769,-2047.36,0.00013863,2]
[353084411,1739545852778,-1842.3,0.00013863,2]
[353084412,1739545852788,-500.0,0.00013863,2]
[353084413,1739545852798,-1116.55,0.00013863,2]
[353084414,1739545852807,-1350.1,0.00013863,2]
[353084415,1739545852817,-681.49,0.00013863,2]
[353084416,1739545852827,-500.0,0.00013863,2]